bitfinex/quotes_SOLUSD_20220114
["timestamp","ask_amount","ask_price","bid_price","bid_amount"]
[1642121584669,1.69963967,147.0,146.89,22.7468]
[1642121584968,1.69963967,147.0,146.95,26.71118021]
[1642121585368,1.69963967,147.0,146.95,27.22118021]
[1642121586169,1.69963967,147.0,146.97,10.203]
[1642121586468,1.69963967,147.02,146.98,1.652795]
[1642121586967,1.69963967,147.02,146.98,1.912795]
[1642121587371,1.69963967,147.02,147.0,10.2018]
[1642121587570,1.69963967,147.02,147.01,28.74086117]
[1642121587771,1.69963967,147.02,147.01,30.39365617]
[1642121587972,1.69963967,147.02,147.01,30.65365617]
[1642121588373,1.69963967,147.02,147.01,41.10375617]
[1642121589175,3.967e-05,147.02,147.01,12.362895]
[1642121589376,3.967e-05,147.02,147.01,36.362895]
[1642121589575,3.967e-05,147.02,147.01,46.142895]
[1642121589776,3.967e-05,147.02,147.01,114.812895]
[1642121590176,3.967e-05,147.02,147.01,22.142895]
[1642121590376,3.967e-05,147.02,147.01,11.942795]
[1642121591776,3.967e-05,147.02,147.01,11.432795]
[1642121592180,3.967e-05,147.02,147.01,1.652795]
[1642121595485,4.41164461,147.02,146.96,19.9825]
[1642121595685,4.41164461,147.02,146.96,20.4925]
[1642121597912,4.41164461,147.02,146.97,25.64192313]
[1642121598112,4.41164461,147.02,146.98,78.8712]
[1642121598316,3.89853885,147.07,146.99,9.78]
[1642121598515,3.89853885,147.07,146.99,16.29]
[1642121598715,3.89853885,147.08,147.0,68.67]
[1642121598913,3.89853885,147.08,147.01,9.78]
[1642121599117,3.89853885,147.08,147.01,18.022]
[1642121599312,3.885e-05,147.08,147.04,10.195]
[1642121599512,3.885e-05,147.08,147.06,24.43919264]
[1642121599712,3.885e-05,147.08,147.07,34.06439994]
[1642121599913,5.09961473,147.17,147.07,34.06439994]
[1642121600113,2.718,147.16,147.07,47.37039994]
[1642121601114,2.718,147.16,147.07,126.23399994]
[1642121601517,2.718,147.18,147.07,126.23399994]
[1642121601916,9.228,147.18,147.07,126.23399994]
[1642121602116,3.228,147.18,147.07,126.23399994]
[1642121602317,3.89252276,147.17,147.07,126.23399994]
[1642121602523,6.86052276,147.17,147.1,10.1935]
[1642121602717,6.86052276,147.17,147.12,26.95820989]
[1642121602918,3.89252276,147.17,147.12,43.45820989]
[1642121603117,3.89252276,147.17,147.12,49.96820989]
[1642121603517,5.09961473,147.21,147.12,49.96820989]
[1642121604118,5.09961473,147.21,147.14,68.67]
[1642121604320,5.09961473,147.21,147.15,9.78]
[1642121604518,5.09961473,147.21,147.15,23.28]
[1642121604720,8.49935789,147.28,147.17,122.24]
[1642121604920,0.00112959,147.24,147.19,190.91]
[1642121605121,0.00112959,147.24,147.21,132.4211]
[1642121605324,0.00112959,147.24,147.23,68.67]
[1642121605521,0.00225918,147.26,147.24,83.79832804]
[1642121605720,0.00225918,147.26,147.25,121.45]
[1642121605922,0.00225918,147.26,147.25,53.04]
[1642121606123,0.00225918,147.26,147.25,16.29]
[1642121606323,0.00225918,147.26,147.25,26.4705]
[1642121606529,8.49935789,147.31,147.25,29.50269997]
[1642121606720,2.716,147.35,147.25,32.53489994]
[1642121606921,2.716,147.35,147.25,32.28489994]
[1642121607120,6.26,147.35,147.25,32.02489994]
[1642121607320,2.715,147.34,147.25,32.28489994]
[1642121607522,8.715,147.34,147.25,32.28489994]
[1642121607720,8.975,147.34,147.25,32.53489994]
[1642121607921,2.975,147.34,147.25,32.53489994]
[1642121608123,3.225,147.34,147.25,26.53489994]
[1642121608927,2.965,147.34,147.25,26.53489994]
[1642121609127,2.715,147.34,147.25,26.53489994]
[1642121609524,2.715,147.34,147.25,32.53489994]
[1642121610525,2.965,147.34,147.25,32.53489994]
[1642121611226,0.25,147.34,147.25,32.53489994]
[1642121611631,9.225,147.39,147.25,32.53489994]
[1642121611827,3.225,147.39,147.25,32.53489994]
[1642121612029,9.225,147.39,147.25,32.53489994]
[1642121612229,10.1814,147.38,147.25,32.53489994]
[1642121612528,2.715,147.37,147.25,32.53489994]
[1642121612929,2.965,147.37,147.25,32.53489994]
[1642121613327,2.715,147.37,147.25,32.53489994]
[1642121613528,2.715,147.39,147.25,235.19680449]
[1642121613827,2.715,147.39,147.25,254.18918585]
[1642121614529,2.965,147.39,147.27,190.91]
[1642121614728,2.715,147.39,147.33,10.1765]
[1642121614928,23.0626,147.42,147.34,32.63093654]
[1642121615129,2.714,147.44,147.34,32.63093654]
[1642121615327,2.713,147.45,147.34,39.14093654]
[1642121615532,8.49935789,147.47,147.34,39.14093654]
[1642121615729,7.99935789,147.47,147.38,10.1742]
[1642121615933,7.99935789,147.47,147.39,9.78]
[1642121616129,7.99935789,147.47,147.4,24.7601046]
[1642121616329,7.99935789,147.47,147.41,9.78]
[1642121616531,7.99935789,147.47,147.41,21.989]
[1642121616734,7.99935789,147.52,147.43,10.169]
[1642121616931,10.71135789,147.52,147.44,9.78]
[1642121617330,16.71135789,147.52,147.44,16.04]
[1642121617534,10.71135789,147.52,147.44,16.29]
[1642121617832,2.712,147.52,147.44,26.4608]
[1642121618034,0.34056062,147.53,147.44,26.4608]
[1642121620437,0.34056062,147.53,147.44,32.9838]
[1642121621037,0.34056062,147.53,147.46,24.40175852]
[1642121621237,0.34056062,147.53,147.49,10.1656]
[1642121621445,0.34056062,147.53,147.5,9.78]
[1642121621641,0.34056062,147.53,147.52,31.23874314]
[1642121622041,0.34056062,147.53,147.52,37.74874314]
[1642121622341,2.711,147.61,147.52,55.06774314]
[1642121622541,2.71,147.63,147.52,91.97574311]
[1642121622941,2.71,147.63,147.52,58.09994311]
[1642121623141,2.71,147.64,147.52,58.09994311]
[1642121623342,99.7564,147.65,147.52,58.09994311]
[1642121623867,2.71,147.68,147.55,10.1631]
[1642121624067,1.71,147.68,147.56,9.78]
[1642121624271,2.709,147.69,147.56,9.78]
[1642121624470,8.709,147.69,147.56,16.29]
[1642121624668,2.709,147.69,147.56,21.428]
[1642121624968,8.709,147.69,147.56,21.428]
[1642121625168,2.709,147.69,147.59,28.22233995]
[1642121625368,2.709,147.69,147.6,9.78]
[1642121625568,2.709,147.74,147.6,16.29]
[1642121626568,10.1583,147.72,147.61,10.1588]
[1642121626869,8.709,147.74,147.61,9.78]
[1642121626870,2.708,147.71,147.61,9.78]
[1642121627170,6.25,147.71,147.61,9.78]
[1642121627371,2.708,147.7,147.61,10.04]
[1642121627568,8.958,147.7,147.61,10.04]
[1642121627768,9.218,147.7,147.61,10.04]
[1642121627969,19.3778,147.7,147.61,10.04]
[1642121628370,19.3778,147.7,147.61,9.78]
[1642121629877,19.1178,147.7,147.61,9.78]
[1642121630069,19.1178,147.7,147.61,10.29]
[1642121630070,8.708,147.7,147.61,10.29]
[1642121630269,6.0,147.7,147.61,10.29]
[1642121630470,6.0,147.71,147.61,16.29]
[1642121630669,2.709,147.73,147.61,22.837]
[1642121630869,8.709,147.73,147.61,22.327]
[1642121631070,18.8661,147.73,147.61,32.486]
[1642121631273,87.5361,147.73,147.61,9.78]
[1642121631475,19.1161,147.73,147.61,9.78]
[1642121631684,28.8961,147.73,147.57,9.78]
[1642121631880,30.54609521,147.73,147.57,9.78]
[1642121632080,29.1561,147.73,147.57,16.03]
[1642121632284,29.1561,147.73,147.58,27.02509203]
[1642121632481,28.9061,147.73,147.59,9.78]
[1642121632681,19.1261,147.73,147.59,19.9404]
[1642121632881,19.1261,147.73,147.59,34.1124]
[1642121634383,19.3761,147.73,147.59,20.2004]
[1642121634684,21.02609521,147.73,147.59,26.4504]
[1642121635783,21.02609521,147.73,147.59,26.1904]
[1642121635984,21.02609521,147.73,147.59,25.9404]
[1642121636183,21.02609521,147.73,147.59,19.9404]
[1642121636383,20.76609521,147.73,147.59,19.9404]
[1642121636684,34.38626858,147.73,147.59,20.1904]
[1642121636883,34.38626858,147.73,147.59,26.1904]
[1642121637083,31.67726858,147.73,147.59,26.1904]
[1642121637485,31.67726858,147.73,147.59,26.4504]
[1642121637683,16.1571,147.73,147.59,26.4504]
[1642121637887,16.4171,147.73,147.59,26.4504]
[1642121638085,16.1571,147.73,147.59,26.4504]
[1642121638984,68.67,147.72,147.59,25.9404]
[1642121639186,10.1604,147.69,147.59,19.9404]
[1642121639485,2.709,147.68,147.59,19.9404]
[1642121639886,3.219,147.68,147.59,19.9404]
[1642121640286,2.709,147.71,147.59,19.9404]
[1642121640586,6.0,147.71,147.59,32.1664]
[1642121640785,6.0,147.71,147.59,100.8364]
[1642121640986,6.0,147.71,147.59,101.0964]
[1642121641185,29.1273,147.74,147.59,101.0964]
[1642121641585,29.3873,147.74,147.59,101.0964]
[1642121642188,39.5443,147.74,147.59,32.4264]
[1642121642989,33.5443,147.74,147.59,32.4264]
[1642121643488,33.7943,147.74,147.59,32.4264]
[1642121643690,2.708,147.73,147.59,32.4264]
[1642121643894,12.8656,147.73,147.59,32.4264]
[1642121644092,13.1156,147.73,147.59,26.4264]
[1642121644292,13.1156,147.73,147.59,20.4504]
[1642121644493,19.1156,147.73,147.59,20.4504]
[1642121644695,19.1156,147.73,147.59,20.1904]
[1642121645203,19.3756,147.73,147.59,20.1904]
[1642121645997,19.3756,147.73,147.59,20.4504]
[1642121646402,19.3756,147.73,147.59,26.4504]
[1642121649899,68.67,147.72,147.59,25.9404]
[1642121650126,10.1599,147.69,147.59,9.78]
[1642121650326,2.709,147.68,147.54,9.78]
[1642121650526,68.67,147.67,147.54,15.78]
[1642121650825,2.709,147.66,147.54,9.78]
[1642121651025,8.959,147.66,147.54,9.78]
[1642121651226,9.219,147.66,147.56,10.1623]
[1642121652429,9.219,147.66,147.56,10.6723]
[1642121652626,6.51,147.66,147.56,10.6723]
[1642121653330,16.6721,147.66,147.56,10.4223]
[1642121653527,16.6721,147.66,147.56,10.1623]
[1642121653928,16.4121,147.66,147.56,10.1623]
[1642121654529,2.709,147.65,147.56,10.4123]
[1642121654732,12.8717,147.65,147.56,10.4123]
[1642121654930,13.1217,147.65,147.56,10.4123]
[1642121655333,13.3817,147.65,147.56,10.6723]
[1642121655730,0.51,147.65,147.56,10.6723]
[1642121655932,0.25,147.66,147.56,10.6723]
[1642121656131,0.25,147.66,147.56,20.4523]
[1642121656333,8.959,147.67,147.56,20.4523]
[1642121656934,8.709,147.67,147.56,26.4523]
[1642121657135,2.709,147.67,147.56,103.26029521]
[1642121657336,23.4046,147.68,147.56,103.26029521]
[1642121657540,23.6278,147.71,147.56,103.26029521]
[1642121657738,23.6278,147.71,147.56,237.24497754]
[1642121657938,23.6278,147.71,147.56,244.1629251]
[1642121658137,23.6278,147.71,147.57,122.24]
[1642121658337,25.8869,147.74,147.66,10.156]
[1642121658536,25.8869,147.74,147.61,29.74649227]
[1642121658735,25.8869,147.74,147.6,9.78]
[1642121658736,9.78,147.73,147.58,9.78]
[1642121658936,2.709,147.72,147.58,0.25]
[1642121659136,33.4009,147.71,147.55,9.78]
[1642121659338,68.67,147.69,147.57,10.1618]
[1642121659635,2.709,147.68,147.57,10.1618]
[1642121659837,2.709,147.68,147.58,23.63989521]
[1642121660036,3.219,147.68,147.58,23.89989521]
[1642121660237,0.51,147.68,147.58,23.89989521]
[1642121660440,0.51,147.68,147.61,10.1593]
[1642121660638,0.25,147.68,147.61,10.1593]
[1642121660839,0.25,147.68,147.61,10.4193]
[1642121661135,9.219,147.69,147.61,10.4193]
[1642121661536,8.969,147.69,147.61,10.4193]
[1642121661736,2.709,147.69,147.61,10.4193]
[1642121662139,2.709,147.69,147.61,10.6693]
[1642121662438,24.0398,147.7,147.64,10.1574]
[1642121662637,12.8665,147.73,147.64,41.02900902]
[1642121662839,12.8665,147.73,147.64,41.28900902]
[1642121663039,19.1265,147.73,147.64,41.28900902]
[1642121664241,19.3765,147.73,147.64,41.28900902]
[1642121664440,19.3765,147.73,147.64,41.53900902]
[1642121665044,5.80738615,147.72,147.64,41.27900902]
[1642121665244,5.80738615,147.72,147.64,41.53900902]
[1642121665444,6.31738615,147.72,147.64,41.53900902]
[1642121666444,6.31738615,147.72,147.64,10.4074]
[1642121666645,6.31738615,147.72,147.62,19.9383]
[1642121666945,12.8669,147.71,147.62,10.03]
[1642121667348,13.3769,147.71,147.62,10.03]
[1642121667552,19.3769,147.71,147.62,34.55092418]
[1642121668049,13.3769,147.71,147.62,34.55092418]
[1642121668248,13.3769,147.71,147.64,0.02]
[1642121668449,9.218,147.71,147.64,0.02]
[1642121668657,9.218,147.71,147.64,0.04]
[1642121669481,19.3765,147.71,147.64,0.04]
[1642121669686,13.3765,147.71,147.64,0.04]
[1642121670587,19.18388615,147.71,147.64,0.04]
[1642121670783,16.21588615,147.71,147.64,0.04]
[1642121670983,68.67,147.7,147.64,0.04]
[1642121671183,10.1611,147.68,147.64,0.04]
[1642121671582,10.4111,147.68,147.64,0.04]
[1642121672082,49.8075,147.7,147.64,0.04]
[1642121672282,47.0995,147.7,147.64,0.04]
[1642121672581,47.6095,147.7,147.64,0.04]
[1642121673183,0.51,147.7,147.64,30.92392297]
[1642121673581,6.31738615,147.71,147.64,30.92392297]
[1642121674185,6.31738615,147.71,147.64,41.08122297]
[1642121675987,6.05738615,147.71,147.64,41.08122297]
[1642121676397,6.05738615,147.71,147.64,41.34122297]
[1642121676991,6.05738615,147.71,147.64,41.08122297]
[1642121677291,1.93729291,147.65,147.64,0.04]
[1642121678096,2.709,147.68,147.64,0.04]
[1642121678291,12.8696,147.68,147.64,0.04]
[1642121678491,13.3796,147.68,147.64,0.04]
[1642121679091,3.219,147.68,147.64,0.04]
[1642121679291,0.51,147.68,147.64,0.04]
[1642121679491,66.6849,147.7,147.64,0.04]
[1642121679695,53.5672,147.7,147.64,0.04]
[1642121679896,5.80738615,147.7,147.64,0.04]
[1642121680391,5.80738615,147.7,147.64,10.1974]
[1642121680592,5.80738615,147.7,147.65,28.35085326]
[1642121680993,5.80738615,147.72,147.65,28.86085326]
[1642121681192,5.80738615,147.72,147.65,36.51685326]
[1642121681393,5.80738615,147.72,147.65,36.00685326]
[1642121681596,5.80738615,147.72,147.65,36.26685326]
[1642121682094,5.80738615,147.72,147.65,36.51685326]
[1642121682294,5.80738615,147.72,147.65,28.86085326]
[1642121682695,30.76458615,147.74,147.65,28.86085326]
[1642121682895,30.76458615,147.74,147.67,10.155]
[1642121683095,5.80738615,147.74,147.67,16.008]
[1642121683498,5.80738615,147.74,147.67,22.268]
[1642121683900,28.70518615,147.76,147.67,22.268]
[1642121684299,28.70518615,147.76,147.67,22.008]
[1642121684600,28.96518615,147.76,147.67,16.008]
[1642121684798,28.96518615,147.76,147.67,10.405]
[1642121685299,28.96518615,147.76,147.67,10.155]
[1642121685499,29.21518615,147.76,147.67,10.155]
[1642121685699,2.707,147.75,147.65,19.9361]
[1642121685901,2.707,147.75,147.64,0.04]
[1642121686099,68.67,147.74,147.64,0.04]
[1642121686300,27.379,147.73,147.64,0.04]
[1642121686504,27.629,147.73,147.64,0.04]
[1642121686701,10.1582,147.72,147.64,0.04]
[1642121687001,2.708,147.71,147.64,0.04]
[1642121687401,3.218,147.71,147.64,0.04]
[1642121687802,10.6687,147.71,147.64,0.04]
[1642121688003,16.6687,147.71,147.64,0.04]
[1642121688204,2.708,147.7,147.64,0.04]
[1642121688604,9.218,147.7,147.64,0.04]
[1642121689006,10.1604,147.69,147.64,0.04]
[1642121689206,0.51,147.7,147.64,0.04]
[1642121689407,0.25,147.7,147.64,0.04]
[1642121689606,3.218,147.72,147.64,0.04]
[1642121689807,2.458,147.72,147.64,0.04]
[1642121690006,3.87463429,147.68,147.64,0.04]
[1642121690212,3.87463429,147.68,147.64,41.17910135]
[1642121690505,3.87463429,147.68,147.64,41.43910135]
[1642121690707,3.87463429,147.68,147.64,41.17910135]
[1642121691006,4.13463429,147.68,147.64,10.1969]
[1642121691208,0.26,147.68,147.64,10.2169]
[1642121691407,0.26,147.68,147.64,0.06]
[1642121691610,4.38463429,147.69,147.64,0.06]
[1642121691908,3.87463429,147.69,147.64,0.06]
[1642121692108,5.80738615,147.71,147.64,0.06]
[1642121692109,3.87463429,147.68,147.64,0.06]
[1642121693210,3.87463429,147.7,147.64,10.2168]
[1642121693411,3.87463429,147.7,147.64,19.9968]
[1642121693612,3.87463429,147.7,147.64,20.5068]
[1642121694214,3.87463429,147.71,147.64,20.5068]
[1642121695314,3.87463429,147.72,147.64,20.2568]
[1642121695513,3.87463429,147.72,147.64,20.5068]
[1642121696616,3.87463429,147.72,147.64,20.2568]
[1642121696823,4.12463429,147.72,147.64,20.2568]
[1642121697017,1.93379191,147.69,147.64,20.2568]
[1642121697218,1.93379191,147.69,147.64,19.9968]
[1642121697419,1.93379191,147.69,147.64,20.2568]
[1642121698020,1.93379191,147.68,147.64,20.5068]
[1642121698221,1.93379191,147.68,147.64,19.9968]
[1642121698826,1.93379191,147.69,147.64,10.2168]
[1642121699124,2.18379191,147.69,147.64,10.2168]
[1642121699621,1.93379191,147.67,147.64,10.2168]
[1642121699823,1.93379191,147.67,147.65,6.06439994]
[1642121700023,1.93379191,147.67,147.65,16.22009994]
[1642121701324,1.93379191,147.67,147.65,26.00009994]
[1642121701525,1.93379191,147.67,147.65,26.26009994]
[1642121702651,1.93379191,147.7,147.65,26.26009994]
[1642121703049,1.93379191,147.7,147.65,26.00009994]
[1642121703248,1.93379191,147.7,147.65,24.30725054]
[1642121703449,2.18379191,147.7,147.65,14.52725054]
[1642121703648,2.18379191,147.7,147.65,4.37155054]
[1642121703649,0.25,147.7,147.65,4.37155054]
[1642121703848,2.708,147.69,147.65,1.33935057]
[1642121704051,2.958,147.69,147.65,1.33935057]
[1642121704251,2.958,147.69,147.65,1.35935057]
[1642121704448,0.25,147.69,147.65,1.37935057]
[1642121704652,2.18379191,147.69,147.65,1.39935057]
[1642121705250,8.18379191,147.69,147.65,0.06]
[1642121705451,2.708,147.68,147.65,0.06]
[1642121705853,9.218,147.68,147.65,0.06]
[1642121706455,8.958,147.68,147.65,0.06]
[1642121706657,7.75440839,147.67,147.65,0.06]
[1642121706856,1.6928494,147.66,147.65,0.06]
[1642121708858,1.9428494,147.66,147.65,0.06]
[1642121710356,1.6928494,147.66,147.65,0.06]
[1642121711460,3.87463429,147.68,147.65,0.06]
[1642121711858,4.12463429,147.68,147.65,0.06]
[1642121714460,3.87463429,147.68,147.65,0.06]
[1642121715261,3.87463429,147.68,147.66,4.37155054]
[1642121715461,3.87463429,147.69,147.66,4.37155054]
[1642121715661,1.6928494,147.68,147.66,4.37155054]
[1642121715861,1.6928494,147.68,147.65,0.06]
[1642121716060,1.9428494,147.68,147.65,0.06]
[1642121716461,2.2028494,147.68,147.65,0.06]
[1642121717164,4.9108494,147.68,147.65,0.06]
[1642121717763,8.78548369,147.68,147.65,0.06]
[1642121717964,8.53548369,147.68,147.65,0.06]
[1642121718164,5.82748369,147.68,147.65,0.06]
[1642121719967,6.07748369,147.68,147.65,0.06]
[1642121720365,5.81748369,147.68,147.65,0.06]
[1642121720965,5.56748369,147.68,147.65,0.06]
[1642121721405,5.56748369,147.68,147.66,4.37155054]
[1642121721564,3.87463429,147.68,147.66,26.89485381]
[1642121721765,3.87463429,147.68,147.66,27.15485381]
[1642121722569,1.93969099,147.68,147.67,60.78]
[1642121722767,1.93969099,147.68,147.67,69.267]
[1642121722968,1.93969099,147.68,147.67,69.777]
[1642121723168,1.93969099,147.68,147.67,75.777]
[1642121723772,1.93969099,147.7,147.67,99.81597681]
[1642121723974,1.93969099,147.7,147.68,14.52455054]
[1642121724368,1.93969099,147.7,147.68,15.03455054]
[1642121724768,1.93969099,147.7,147.68,14.77455054]
[1642121725367,1.93969099,147.7,147.68,14.52455054]
[1642121726368,1.93969099,147.7,147.68,52.09453804]
[1642121726568,1.93969099,147.7,147.68,58.96253804]
[1642121726769,1.93969099,147.7,147.68,59.22253804]
[1642121726967,1.93969099,147.69,147.68,59.22253804]
[1642121728267,1.93969099,147.71,147.68,59.22253804]
[1642121728467,1.93969099,147.71,147.68,52.35453804]
[1642121729271,1.93969099,147.71,147.68,52.37453804]
[1642121729472,1.93969099,147.71,147.68,52.39453804]
[1642121729674,1.93969099,147.71,147.68,52.41453804]
[1642121729872,1.93969099,147.71,147.68,52.43453804]
[1642121730271,0.04,147.7,147.68,52.43453804]
[1642121730477,0.04,147.7,147.68,58.43453804]
[1642121733683,0.04,147.7,147.68,57.92453804]
[1642121733884,0.04,147.7,147.68,30.38455054]
[1642121734083,1.6928494,147.69,147.68,15.86]
[1642121734283,1.6928494,147.69,147.68,0.08]
[1642121735683,2.748,147.7,147.68,1.41935057]
[1642121735684,0.04,147.7,147.68,1.41935057]
[1642121735890,0.04,147.7,147.68,4.45155054]
[1642121736719,1.93952072,147.69,147.68,4.45155054]
[1642121737015,1.93952072,147.69,147.68,4.71155054]
[1642121737414,1.6928494,147.69,147.68,0.34]
[1642121737816,1.6928494,147.69,147.68,10.4936]
[1642121738215,1.97952072,147.7,147.68,14.86515054]
[1642121739615,1.97952072,147.7,147.68,15.11515054]
[1642121739817,1.97952072,147.7,147.68,4.71155054]
[1642121740217,0.04,147.7,147.68,4.71155054]
[1642121741120,1.47952072,147.71,147.68,4.71155054]
[1642121741518,2.708,147.73,147.68,14.86525054]
[1642121741819,6.58263429,147.73,147.68,14.86525054]
[1642121742421,2.708,147.73,147.68,14.86525054]
[1642121744021,3.87463429,147.74,147.68,15.11525054]
[1642121744622,3.87463429,147.74,147.69,9.78]
[1642121744825,3.87463429,147.74,147.7,29.52155376]
[1642121745022,3.87463429,147.74,147.72,10.1505]
[1642121745423,3.87463429,147.74,147.73,4.37155054]
[1642121745822,3.87463429,147.74,147.73,3.03219997]
[1642121746025,6.58163429,147.76,147.7,39.30155376]
[1642121746227,3.87463429,147.76,147.7,39.56155376]
[1642121746625,3.87463429,147.76,147.7,49.45325376]
[1642121746824,3.87463429,147.76,147.7,126.28324897]
[1642121747024,3.87463429,147.75,147.7,57.61324897]
[1642121747225,3.87463429,147.75,147.7,55.71325376]
[1642121747428,3.87463429,147.75,147.7,49.96325376]
[1642121747625,3.87463429,147.75,147.7,49.71325376]
[1642121747824,3.87463429,147.75,147.7,49.45325376]
[1642121748028,3.87463429,147.76,147.7,39.30155376]
[1642121748326,2.207,147.75,147.7,39.30155376]
[1642121749431,6.08163429,147.75,147.7,39.30155376]
[1642121749627,3.87463429,147.75,147.7,39.32155376]
[1642121749828,3.87463429,147.75,147.7,9.82]
[1642121750032,3.87463429,147.75,147.7,9.84]
[1642121750330,3.87463429,147.75,147.7,9.86]
[1642121750931,7.75321318,147.75,147.7,10.37]
[1642121751133,7.75321318,147.75,147.7,10.12]
[1642121751438,7.75321318,147.75,147.7,10.37]
[1642121752033,3.87463429,147.76,147.7,10.37]
[1642121752229,3.87463429,147.76,147.7,20.2722]
[1642121752430,3.87463429,147.76,147.7,20.5222]
[1642121753533,3.37463429,147.76,147.7,20.5222]
[1642121754334,3.37463429,147.76,147.7,26.5222]
[1642121754537,3.37463429,147.76,147.7,28.17219521]
[1642121754938,2.707,147.79,147.7,28.17219521]
[1642121755166,3.87764475,147.78,147.7,28.17219521]
[1642121756335,3.87764475,147.8,147.7,28.17219521]
[1642121756538,2.707,147.79,147.7,28.17219521]
[1642121756737,6.58464475,147.8,147.7,28.17219521]
[1642121757236,2.707,147.8,147.7,28.17219521]
[1642121757940,2.957,147.8,147.7,28.17219521]
[1642121758338,3.87741665,147.79,147.7,28.17219521]
[1642121759941,4.12741665,147.79,147.7,20.2622]
[1642121760543,2.707,147.78,147.7,20.0122]
[1642121760743,2.707,147.78,147.7,10.2322]
[1642121760941,7.09441665,147.78,147.7,10.2322]
[1642121761344,6.84441665,147.78,147.7,10.2322]
[1642121761746,3.87741665,147.77,147.7,10.4922]
[1642121761944,3.87741665,147.77,147.7,26.5222]
[1642121762145,3.87741665,147.77,147.7,30.87919521]
[1642121762348,3.87741665,147.77,147.7,24.87919521]
[1642121762675,3.87741665,147.77,147.7,22.9792]
[1642121762872,3.87741665,147.77,147.7,23.2292]
[1642121763073,3.87741665,147.77,147.7,29.2292]
[1642121763279,3.87741665,147.77,147.7,30.87919521]
[1642121763474,3.87741665,147.77,147.7,24.62919521]
[1642121763675,3.87741665,147.79,147.7,23.2292]
[1642121763876,2.707,147.78,147.7,20.2722]
[1642121764278,2.957,147.78,147.7,20.2722]
[1642121764576,0.51,147.78,147.7,20.0122]
[1642121764976,7.09441665,147.8,147.7,20.0122]
[1642121765175,6.58441665,147.8,147.7,20.0122]
[1642121765375,3.87741665,147.77,147.7,20.2622]
[1642121765776,3.87741665,147.77,147.7,20.5222]
[1642121766175,3.87741665,147.77,147.7,26.5222]
[1642121766579,3.56726403,147.77,147.7,26.5222]
[1642121766780,3.56726403,147.78,147.7,26.5222]
[1642121767077,3.56726403,147.78,147.7,26.2622]
[1642121767277,3.81726403,147.78,147.7,9.86]
[1642121767478,2.707,147.77,147.7,0.08]
[1642121767879,10.1552,147.76,147.7,0.08]
[1642121768077,0.26,147.76,147.7,0.08]
[1642121768281,2.957,147.77,147.7,0.08]
[1642121768488,0.51,147.77,147.7,0.08]
[1642121769078,3.217,147.78,147.7,0.08]
[1642121769480,3.217,147.78,147.7,10.233]
[1642121769682,3.217,147.78,147.7,16.233]
[1642121769880,3.217,147.78,147.7,6.08]
[1642121770383,3.217,147.78,147.7,0.08]
[1642121770583,13.3707,147.78,147.7,10.233]
[1642121770783,13.3707,147.78,147.7,16.253]
[1642121770984,13.3707,147.78,147.7,16.503]
[1642121771585,13.3707,147.78,147.7,16.253]
[1642121771789,13.3707,147.78,147.7,16.503]
[1642121771987,13.3707,147.78,147.7,16.253]
[1642121772386,13.3707,147.78,147.7,16.503]
[1642121772588,13.3707,147.78,147.7,6.35]
[1642121772787,13.3707,147.78,147.7,0.35]
[1642121773588,13.3707,147.78,147.7,0.1]
[1642121773794,3.217,147.78,147.7,10.2529]
[1642121773992,0.26,147.78,147.7,19.2099]
[1642121774392,25.1063,147.79,147.7,19.2099]
[1642121774792,25.1063,147.79,147.7,18.9599]
[1642121775597,2.707,147.78,147.7,18.9599]
[1642121775997,3.217,147.78,147.7,18.9599]